bitfinex/quotes_BTCUSD_20250917
["timestamp","ask_amount","ask_price","bid_price","bid_amount"]
[1758137719386,1.21993056,115860.0,115850.0,0.18130703]
[1758137719617,1.04730843,115860.0,115850.0,0.18130703]
[1758137720062,0.37699126,115860.0,115850.0,0.18130703]
[1758137720303,1.21993056,115860.0,115850.0,0.18074703]
[1758137720484,0.54961339,115860.0,115850.0,0.00811]
[1758137720710,0.92833056,115860.0,115850.0,0.00811]
[1758137720954,1.21985056,115860.0,115850.0,0.00811]
[1758137721376,1.21985056,115860.0,115850.0,0.18130703]
[1758137721377,0.75580843,115860.0,115850.0,0.18130703]
[1758137721819,1.04732843,115860.0,115850.0,0.18130703]
[1758137722032,0.37697126,115860.0,115850.0,0.21671289]
[1758137722261,0.08549126,115860.0,115850.0,0.21671289]
[1758137722931,0.08549126,115860.0,115850.0,0.21661289]
[1758137723143,0.08549126,115860.0,115850.0,0.18120703]
[1758137724460,0.00022159,115860.0,115850.0,0.18120703]
[1758137727392,0.00022159,115860.0,115850.0,0.18130703]
[1758137727619,0.75580843,115860.0,115850.0,0.18130703]
[1758137727851,1.04712843,115860.0,115850.0,0.18130703]
[1758137728472,1.06323712,115860.0,115850.0,0.18130703]
[1758137728707,1.29320431,115860.0,115850.0,0.18074703]
[1758137728933,1.23581925,115860.0,115850.0,0.00811]
[1758137729167,1.23581925,115860.0,115850.0,0.18074703]
[1758137729384,1.23581925,115860.0,115850.0,0.18130703]
[1758137729385,1.06319712,115860.0,115850.0,0.18130703]
[1758137729607,1.23581925,115860.0,115850.0,0.18074703]
[1758137729837,1.23581925,115860.0,115850.0,0.00811]
[1758137730061,1.26799115,115860.0,115850.0,0.00515]
[1758137730288,1.36127115,115860.0,115850.0,0.00515]
[1758137730507,1.36127115,115860.0,115850.0,0.0031]
[1758137730508,1.72820115,115860.0,115850.0,0.0031]
[1758137730941,1.72515115,115860.0,115850.0,0.0031]
[1758137731175,1.72820115,115860.0,115850.0,0.0031]
[1758137731590,1.72820115,115860.0,115850.0,0.0001]
[1758137731841,1.72820115,115860.0,115850.0,0.0011]
[1758137733264,1.69913115,115860.0,115850.0,0.0062]
[1758137733923,1.72809115,115860.0,115850.0,0.0011]
[1758137734368,1.72809115,115860.0,115850.0,0.001]
[1758137735023,1.72489115,115860.0,115850.0,0.00298]
[1758137735247,1.69909115,115860.0,115850.0,0.0061]
[1758137735669,1.37781925,115860.0,115850.0,0.17873703]
[1758137735904,1.15627712,115860.0,115850.0,0.17873703]
[1758137736120,1.18642902,115860.0,115850.0,0.17929703]
[1758137736363,0.89534902,115860.0,115850.0,0.17929703]
[1758137736810,0.48595995,115860.0,115850.0,0.21450192]
[1758137737177,0.10159995,115860.0,115850.0,0.21450192]
[1758137737394,0.39263995,115860.0,115850.0,0.21450192]
[1758137737808,0.10159995,115860.0,115850.0,0.21450192]
[1758137738457,0.10164688,115860.0,115850.0,0.21450192]
[1758137739136,0.01637721,115860.0,115850.0,0.21450192]
[1758137741144,0.01637721,115860.0,115850.0,0.17929703]
[1758137741757,0.68669438,115860.0,115850.0,0.17929703]
[1758137742286,0.77196405,115860.0,115850.0,0.17873703]
[1758137742512,0.77196161,115860.0,115850.0,0.17929703]
[1758137742741,0.94458374,115860.0,115850.0,0.0061]
[1758137742974,0.97686564,115860.0,115850.0,0.00298]
[1758137743268,1.09697564,115860.0,115850.0,0.001]
[1758137743496,1.43697564,115860.0,115850.0,0.001]
[1758137746190,1.69881564,115860.0,115850.0,0.00298]
[1758137746400,1.69881564,115860.0,115850.0,0.17873703]
[1758137746643,1.40801564,115860.0,115850.0,0.00298]
[1758137746865,1.40801564,115860.0,115850.0,0.17873703]
[1758137747086,1.69881564,115860.0,115850.0,0.0061]
[1758137747530,1.69881564,115860.0,115850.0,0.00308]
[1758137748688,1.72777564,115860.0,115850.0,0.0011]
[1758137749103,1.70094564,115860.0,115850.0,0.0011]
[1758137749313,1.72777564,115860.0,115850.0,0.0011]
[1758137750621,1.43697564,115860.0,115850.0,0.0011]
[1758137750845,1.43697564,115860.0,115850.0,0.001]
[1758137751091,1.72449564,115860.0,115850.0,0.00298]
[1758137751305,1.69870366,115860.0,115850.0,0.00298]
[1758137752075,1.40802366,115860.0,115850.0,0.00298]
[1758137752294,1.69870366,115860.0,115850.0,0.00298]
[1758137752523,1.50988033,115860.0,115850.0,0.17873703]
[1758137752951,1.68250246,115860.0,115850.0,0.17873703]
[1758137753166,0.17877126,115860.0,115850.0,0.21393112]
[1758137753384,0.37613126,115860.0,115850.0,0.17929703]
[1758137753596,1.07660033,115860.0,115850.0,0.17929703]
[1758137753825,0.37609126,115860.0,115850.0,0.17929703]
[1758137754712,1.04640843,115860.0,115850.0,0.17873703]
[1758137755048,1.21903056,115860.0,115850.0,0.00298]
[1758137755301,1.25131246,115860.0,115850.0,0.17561703]
[1758137755528,1.24918246,115860.0,115850.0,0.17561703]
[1758137755949,1.24918246,115860.0,115850.0,0.17873703]
[1758137756158,0.08549126,115860.0,115850.0,0.17873703]
[1758137756374,0.37605126,115860.0,115850.0,0.17929703]
[1758137757017,1.04636843,115860.0,115850.0,0.17929703]
[1758137757219,1.04636843,115860.0,115850.0,0.17873703]
[1758137757427,0.37605126,115860.0,115850.0,0.17929703]
[1758137757640,1.04636843,115860.0,115850.0,0.17929703]
[1758137758076,0.37601126,115860.0,115850.0,0.17929703]
[1758137758544,0.37597126,115860.0,115850.0,0.17929703]
[1758137758742,0.00022159,115860.0,115850.0,0.17929703]
[1758137760537,0.75580843,115860.0,115850.0,0.17873703]
[1758137760738,0.75580843,115860.0,115850.0,0.17929703]
[1758137761151,0.08549126,115860.0,115850.0,0.17929703]
[1758137761369,0.08549126,115860.0,115850.0,0.17873703]
[1758137761638,0.75580843,115860.0,115850.0,0.17929703]
[1758137761876,0.75580843,115860.0,115850.0,0.17873703]
[1758137762087,0.92843056,115860.0,115850.0,0.17873703]
[1758137762305,0.92843056,115860.0,115850.0,0.0061]
[1758137762741,0.08549126,115860.0,115850.0,0.17873703]
[1758137762961,0.75580843,115860.0,115850.0,0.17873703]
[1758137763210,0.75580843,115860.0,115850.0,0.17929703]
[1758137763425,0.08549126,115860.0,115850.0,0.17929703]
[1758137763648,0.37585126,115860.0,115850.0,0.17929703]
[1758137763879,0.00022159,115860.0,115850.0,0.21449112]
[1758137765207,0.00022159,115860.0,115850.0,0.93480829]
[1758137765504,0.00022159,115860.0,115850.0,0.26449112]
[1758137765745,0.00022159,115860.0,115850.0,0.55477112]
[1758137765982,0.00022159,115860.0,115850.0,0.89477112]
[1758137766211,0.00022159,115860.0,115850.0,0.95879094]
[1758137766436,0.00022159,115860.0,115850.0,1.62910811]
[1758137766679,0.00022159,115860.0,115850.0,0.96905864]
[1758137767509,0.00022159,115860.0,115850.0,1.81792548]
[1758137767729,0.0001,115870.0,115860.0,0.17262213]
[1758137767941,0.00057077,115870.0,115860.0,0.2615218]
[1758137768149,0.00057077,115870.0,115860.0,0.5538518]
[1758137769561,0.00057077,115870.0,115860.0,0.2636518]
[1758137769808,0.00057077,115870.0,115860.0,0.5537718]
[1758137770564,0.00057077,115870.0,115860.0,0.2676518]
[1758137771426,0.00057077,115870.0,115860.0,0.18238213]
[1758137771910,0.00057077,115870.0,115860.0,0.47246213]
[1758137773478,0.09567077,115880.0,115870.0,0.71060867]
[1758137773766,0.09567077,115880.0,115870.0,0.71636867]
[1758137774016,1e-08,115880.0,115870.0,1.10636867]
[1758137774261,1e-08,115890.0,115880.0,0.56259233]
[1758137774524,1e-08,115890.0,115880.0,1.57273344]
[1758137774762,1e-08,115890.0,115880.0,1.57486344]
[1758137775197,1e-08,115890.0,115880.0,1.036862]
[1758137775419,1e-08,115890.0,115880.0,0.90159233]
[1758137775660,1e-08,115890.0,115880.0,1.05285874]
[1758137776073,1e-08,115890.0,115880.0,0.76693874]
[1758137776285,1e-08,115890.0,115880.0,0.52235233]
[1758137776286,0.53800145,115890.0,115880.0,0.52235233]
[1758137776493,0.53800145,115890.0,115880.0,0.18235233]
[1758137776699,1e-08,115890.0,115880.0,0.47227233]
[1758137777384,1e-08,115890.0,115880.0,0.47223233]
[1758137777620,1e-08,115890.0,115880.0,0.267622]
[1758137777804,1e-08,115890.0,115880.0,0.47219233]
[1758137777961,0.53800145,115890.0,115880.0,0.47163233]
[1758137778149,0.53800145,115890.0,115880.0,0.47219233]
[1758137778558,1e-08,115890.0,115880.0,0.47219233]
[1758137778798,1e-08,115890.0,115880.0,0.18235233]
[1758137779008,1e-08,115890.0,115880.0,0.55021525]
[1758137779618,1e-08,115890.0,115880.0,0.55017525]
[1758137779923,0.53800145,115890.0,115880.0,0.18235233]
[1758137780129,0.53800145,115890.0,115880.0,0.47215233]
[1758137780130,1e-08,115890.0,115880.0,0.47215233]
[1758137780527,1e-08,115890.0,115880.0,0.47211233]
[1758137780528,0.53800145,115890.0,115880.0,0.47211233]
[1758137780902,1e-08,115890.0,115880.0,0.47211233]
[1758137781348,1e-08,115890.0,115880.0,1.01011377]
[1758137781580,1e-08,115890.0,115880.0,1.43538344]
[1758137782266,1e-08,115890.0,115880.0,1.43534344]
[1758137782469,1e-08,115890.0,115880.0,0.81207233]
[1758137782690,1e-08,115890.0,115880.0,0.52235233]
[1758137783110,1e-08,115890.0,115880.0,0.81207233]
[1758137784572,1e-08,115890.0,115880.0,1.35007377]
[1758137785478,1e-08,115890.0,115880.0,1.34999377]
[1758137785696,1e-08,115890.0,115880.0,1.43526344]
[1758137786973,1e-08,115890.0,115880.0,1.14562344]
[1758137787177,1e-08,115890.0,115880.0,0.897182]
[1758137788080,1e-08,115890.0,115880.0,1.49960115]
[1758137788412,1e-08,115890.0,115880.0,1.21004115]
[1758137788666,1e-08,115890.0,115880.0,0.52235233]
[1758137788911,1e-08,115890.0,115880.0,0.81187233]
[1758137789279,1e-08,115890.0,115880.0,0.18235233]
[1758137789483,1e-08,115890.0,115880.0,0.47187233]
[1758137789703,0.53800145,115890.0,115880.0,0.47131233]
[1758137789899,0.53800145,115890.0,115880.0,0.18179233]
[1758137790133,0.53800145,115890.0,115880.0,0.47127233]
[1758137790356,0.53800145,115890.0,115880.0,0.18179233]
[1758137790739,0.62327112,115890.0,115880.0,0.17872233]
[1758137790987,0.79584856,115890.0,115880.0,0.17872233]
[1758137791210,0.82260856,115890.0,115880.0,0.17872233]
[1758137791382,0.79584856,115890.0,115880.0,0.17872233]
[1758137791613,1.14519046,115890.0,115880.0,0.004]
[1758137793568,0.85575046,115890.0,115880.0,0.004]
[1758137793776,1.14216046,115890.0,115880.0,0.17659233]
[1758137794371,0.31475902,115890.0,115880.0,0.17875233]
[1758137794577,1.14121046,115890.0,115880.0,0.17259233]
[1758137795106,0.08526968,115890.0,115880.0,0.20079074]
[1758137795292,0.08526968,115890.0,115880.0,0.17849233]
[1758137795492,0.62327112,115890.0,115880.0,0.17259233]
[1758137795774,0.62327112,115890.0,115880.0,0.17475233]
[1758137795976,0.62327112,115890.0,115880.0,0.17575233]
[1758137796205,0.62327112,115890.0,115880.0,0.17893233]
[1758137796417,0.62327112,115890.0,115880.0,0.17793233]
[1758137797220,0.91259112,115890.0,115880.0,0.21015923]
[1758137797409,0.37458968,115890.0,115880.0,0.21015923]
[1758137797557,0.91259112,115890.0,115880.0,0.17793233]
[1758137798190,0.62327112,115890.0,115880.0,0.17793233]
[1758137798391,0.91255112,115890.0,115880.0,0.00216]
[1758137798601,1.11729046,115890.0,115880.0,0.17259233]
[1758137798808,0.31383902,115890.0,115880.0,0.17475233]
[1758137799008,1.14112046,115890.0,115880.0,0.17475233]
[1758137799412,1.14112046,115890.0,115880.0,0.17259233]
[1758137799632,0.17259233,115880.0,115870.0,0.17260655]
[1758137799852,0.82478344,115880.0,115860.0,0.18125323]
[1758137800048,1.08511834,115870.0,115860.0,0.18125323]
[1758137800360,0.91251111,115870.0,115860.0,0.18659323]
[1758137801463,0.92266894,115870.0,115860.0,0.18341323]
[1758137801659,0.92467894,115870.0,115860.0,0.18341323]
[1758137801841,0.94850894,115870.0,115860.0,0.18125323]
[1758137802043,0.94850894,115870.0,115850.0,0.28444888]
[1758137802253,0.71062357,115860.0,115850.0,0.28126888]
[1758137802457,0.82481324,115860.0,115850.0,0.27263703]
[1758137802672,0.82173324,115860.0,115850.0,0.27263703]
[1758137803092,0.93626111,115860.0,115850.0,0.27479703]
[1758137803288,0.91243111,115860.0,115850.0,0.27479703]
[1758137803487,0.91243111,115860.0,115850.0,0.27797703]
[1758137803488,0.37442967,115860.0,115850.0,0.27797703]
[1758137803704,0.91243111,115860.0,115850.0,0.27797703]
[1758137804159,0.62327111,115860.0,115850.0,0.27797703]
[1758137804370,0.62327111,115860.0,115850.0,0.32452837]
[1758137804371,0.91239111,115860.0,115850.0,0.32452837]
[1758137804506,0.91239111,115860.0,115850.0,0.27853703]
[1758137805345,0.91239111,115860.0,115850.0,0.27953703]
[1758137805346,0.62327111,115860.0,115850.0,0.27953703]
[1758137805575,0.53800144,115880.0,115870.0,0.17259407]
[1758137805788,0.62327111,115880.0,115870.0,0.17793407]
[1758137806005,0.91239111,115880.0,115870.0,0.17793407]
[1758137806418,0.37438967,115880.0,115870.0,0.17793407]
[1758137806632,0.08526967,115880.0,115870.0,0.17849407]
[1758137806834,0.91235111,115880.0,115870.0,0.17793407]
[1758137807291,0.91235111,115880.0,115870.0,0.17794723]
[1758137807756,0.62327111,115880.0,115870.0,0.17794723]
[1758137807952,0.91435111,115880.0,115870.0,0.17794723]
[1758137808571,0.62527111,115880.0,115870.0,0.17794723]
[1758137808786,0.91435111,115880.0,115870.0,0.17794723]
[1758137809208,0.62527111,115880.0,115870.0,0.17794723]
[1758137809419,0.62527111,115880.0,115870.0,0.21448328]
[1758137809614,0.91431111,115880.0,115870.0,0.21448328]
[1758137809854,0.002,115880.0,115870.0,0.21448328]
[1758137810269,0.002,115880.0,115870.0,0.50348328]
[1758137810461,0.002,115880.0,115870.0,0.84348328]
[1758137810860,1e-08,115890.0,115880.0,0.17259233]
[1758137811153,1e-08,115890.0,115880.0,0.17633233]
[1758137811320,1e-08,115890.0,115880.0,0.17849233]
[1758137811747,1e-08,115890.0,115880.0,0.263762]
[1758137812181,1e-08,115890.0,115880.0,0.552722]
[1758137812422,1e-08,115890.0,115880.0,1.17599311]
[1758137812636,1e-08,115890.0,115880.0,1.51599311]
[1758137812875,1e-08,115890.0,115880.0,0.69248777]
[1758137813461,1e-08,115890.0,115880.0,0.98140777]
[1758137814023,1e-08,115890.0,115880.0,0.99158856]
[1758137814661,1e-08,115890.0,115880.0,0.99154856]
[1758137815133,1e-08,115890.0,115880.0,0.76663942]
[1758137815358,1e-08,115890.0,115880.0,0.88498008]
[1758137815607,1e-08,115890.0,115880.0,0.88494008]
[1758137816564,1e-08,115890.0,115880.0,0.59710008]
[1758137816777,0.53800145,115890.0,115880.0,0.88490008]
[1758137816996,0.53800145,115890.0,115880.0,0.59810008]
[1758137817237,0.53800145,115890.0,115880.0,0.19412922]
[1758137817458,0.53800145,115890.0,115880.0,0.46873233]
[1758137817900,0.53800145,115890.0,115880.0,0.46929233]
[1758137818726,0.53800145,115890.0,115880.0,0.554562]
[1758137818931,0.53800145,115890.0,115880.0,0.553962]
[1758137819481,0.53800145,115890.0,115880.0,0.554522]
[1758137819701,0.53800145,115890.0,115880.0,0.46865233]
[1758137820278,1e-08,115890.0,115880.0,0.46865233]
[1758137820491,0.53800145,115890.0,115880.0,0.17993233]
[1758137820704,0.53800145,115890.0,115880.0,0.46921233]
[1758137820915,1e-08,115890.0,115880.0,0.46921233]
[1758137821130,1e-08,115890.0,115880.0,0.554482]
[1758137821350,1e-08,115890.0,115880.0,1.09248344]
[1758137821554,1e-08,115890.0,115880.0,0.554482]
[1758137822190,1e-08,115890.0,115880.0,0.46921233]
[1758137822878,1e-08,115890.0,115880.0,0.46917233]
[1758137823490,1e-08,115890.0,115880.0,0.53458736]
[1758137823927,0.53800145,115890.0,115880.0,0.53450736]
[1758137824133,0.53800145,115890.0,115880.0,0.24590736]
[1758137824330,0.53800145,115890.0,115880.0,0.53450736]
[1758137824543,0.53800145,115890.0,115880.0,0.17993233]
[1758137825161,1e-08,115890.0,115880.0,0.17993233]
[1758137825380,0.53800145,115890.0,115880.0,0.17675233]
[1758137826005,0.53800145,115890.0,115880.0,0.17978233]
[1758137826215,0.53800145,115890.0,115880.0,0.17675233]
[1758137826449,0.82868145,115890.0,115880.0,0.17675233]
[1758137826900,0.85266145,115890.0,115880.0,0.17459233]
[1758137827105,0.85266145,115890.0,115880.0,0.17667233]
[1758137827546,0.82868144,115890.0,115880.0,0.17677233]
[1758137827776,0.82656144,115890.0,115880.0,0.17980233]
[1758137828016,1.08953855,115890.0,115880.0,0.17469233]
[1758137828227,1.11351855,115890.0,115880.0,0.17469233]
[1758137828430,1.11351855,115890.0,115880.0,0.0021]
[1758137828645,0.82499855,115890.0,115880.0,0.17469233]
[1758137828825,1.11042855,115890.0,115880.0,0.17677233]
[1758137829048,0.39984967,115890.0,115880.0,0.17677233]
[1758137829259,0.93785111,115890.0,115880.0,0.17269233]
[1758137829457,0.93785111,115890.0,115880.0,0.17477233]
[1758137829660,0.93785111,115890.0,115880.0,0.17369233]
[1758137829870,1.11042855,115890.0,115880.0,0.17369233]
[1758137830329,0.64937111,115890.0,115880.0,0.17577233]
[1758137830546,0.37370967,115890.0,115880.0,0.17880233]
[1758137830756,0.28894,115900.0,115890.0,0.17257744]
[1758137830972,0.00064115,115900.0,115890.0,0.17824744]
[1758137831408,0.00064115,115900.0,115890.0,0.17834744]
[1758137832298,0.00064115,115900.0,115890.0,0.17778744]
[1758137832505,0.00064115,115900.0,115890.0,0.46618744]
[1758137833351,0.00064115,115900.0,115890.0,0.17778744]
[1758137833510,0.00064115,115900.0,115890.0,0.46618744]
[1758137834117,0.00064115,115900.0,115890.0,0.46674744]
[1758137834324,0.00064115,115900.0,115890.0,0.46618744]
[1758137834530,0.00064115,115900.0,115890.0,0.46614744]
[1758137834931,0.67028122,115900.0,115890.0,0.46307744]
[1758137835142,0.67240122,115900.0,115890.0,0.17475744]
[1758137835348,0.67028122,115900.0,115890.0,0.17475744]
[1758137835747,0.00276115,115900.0,115890.0,0.17267744]
[1758137835966,0.69638122,115900.0,115890.0,0.17465744]
[1758137836166,0.67240122,115900.0,115890.0,0.17465744]
[1758137836371,0.96072122,115900.0,115890.0,0.17465744]
[1758137836773,0.95860122,115900.0,115890.0,0.17768744]
[1758137836980,0.67028122,115900.0,115890.0,0.21272542]
[1758137837208,0.67028122,115900.0,115890.0,0.17768744]
[1758137837746,0.75767089,115900.0,115890.0,0.17465744]
[1758137838007,0.08591082,115900.0,115890.0,0.17465744]
[1758137838154,1.04379089,115900.0,115890.0,0.17465744]
[1758137838359,1.04379089,115900.0,115890.0,0.17768744]
[1758137838614,0.75555089,115900.0,115890.0,0.17768744]
[1758137838986,0.08591082,115900.0,115890.0,0.17768744]
[1758137839186,0.75555089,115900.0,115890.0,0.17768744]
[1758137840341,0.08591082,115900.0,115890.0,0.17768744]
[1758137841968,0.75555089,115900.0,115890.0,0.17824744]
[1758137842178,0.75767089,115900.0,115890.0,0.17257744]
[1758137842383,0.75767089,115900.0,115890.0,0.17465744]
[1758137842596,0.78165089,115900.0,115890.0,0.17257744]
[1758137843241,0.11201082,115900.0,115890.0,0.17465744]
[1758137843649,1.04363089,115900.0,115890.0,0.17768744]
[1758137843858,1.04575089,115900.0,115890.0,0.17465744]
[1758137844058,1.21831344,115900.0,115890.0,0.00208]
[1758137844302,1.24534344,115900.0,115890.0,0.17257744]
[1758137845989,1.24534344,115900.0,115880.0,0.17259233]
[1758137846201,0.75490974,115890.0,115880.0,0.17259233]
[1758137846400,0.77888974,115890.0,115880.0,0.17259233]
[1758137846643,0.78100974,115890.0,115880.0,0.17467233]
[1758137846885,0.95663718,115890.0,115880.0,0.17259233]
[1758137847531,0.95663718,115890.0,115880.0,0.17359233]
[1758137847933,0.78405974,115890.0,115880.0,0.17359233]
[1758137848249,0.39932967,115890.0,115880.0,0.17567233]
[1758137848467,1.24154718,115890.0,115880.0,0.17567233]
[1758137848693,1.24459718,115890.0,115880.0,0.001]
[1758137848908,1.24459718,115890.0,115880.0,0.17359233]
[1758137849665,1.24459718,115890.0,115880.0,0.001]
[1758137849881,1.24459718,115890.0,115880.0,0.17359233]
[1758137850305,1.24459718,115890.0,115880.0,0.001]
[1758137850745,1.36798908,115890.0,115880.0,0.001]
[1758137851599,0.20274423,115880.0,115870.0,0.0001]
[1758137851817,1.24553397,115880.0,115870.0,0.0001]
[1758137852029,1.61468397,115880.0,115870.0,0.0001]
[1758137852249,1.64339377,115880.0,115870.0,0.0001]
[1758137852881,1.64335377,115880.0,115870.0,0.0001]
[1758137853528,2.01643377,115880.0,115870.0,0.0001]
[1758137854393,1.72859377,115880.0,115870.0,0.0001]
[1758137854575,2.01643377,115880.0,115870.0,0.0001]
[1758137854791,2.01643377,115880.0,115870.0,5.5e-07]
[1758137854993,0.17260723,115870.0,115860.0,0.0001]
[1758137855206,0.95766887,115870.0,115860.0,0.17272213]
[1758137855415,1.61037887,115870.0,115860.0,0.0001]
[1758137855624,1.61362887,115870.0,115860.0,0.0001]
[1758137855842,1.32582887,115870.0,115860.0,0.17272213]
[1758137856059,1.61362887,115870.0,115860.0,0.0001]
[1758137856480,1.61462887,115870.0,115860.0,0.0001]
[1758137857110,1.61458887,115870.0,115860.0,0.0001]
[1758137857319,1.43873164,115870.0,115860.0,0.0001]
[1758137857537,1.61458887,115870.0,115860.0,0.0001]
[1758137858194,1.32682887,115870.0,115860.0,0.0001]
[1758137858396,1.64329867,115870.0,115860.0,0.0001]
[1758137858818,1.70875173,115870.0,115860.0,0.0001]
[1758137859642,1.79415173,115870.0,115860.0,0.0001]
[1758137859849,2.08187173,115870.0,115860.0,0.0001]
[1758137860991,2.109177,115870.0,115860.0,0.0001]
[1758137861447,2.108177,115870.0,115860.0,0.0001]
[1758137861675,2.12629947,115870.0,115860.0,0.0001]
[1758137861902,2.12429947,115870.0,115860.0,0.0001]
[1758137862112,2.1879142,115870.0,115860.0,0.0001]
[1758137862345,1.88205417,115860.0,115850.0,0.1001]
[1758137862569,1.41715377,115860.0,115850.0,0.1001]
[1758137862797,1.41912377,115860.0,115850.0,0.1001]
[1758137863456,1.41912377,115860.0,115850.0,0.10057077]
[1758137865063,1.70676377,115860.0,115850.0,0.10057077]
[1758137865276,1.42112377,115860.0,115850.0,0.10057077]
[1758137865491,1.70876377,115860.0,115850.0,0.10057077]
[1758137866986,1.67857187,115860.0,115850.0,0.10057077]
[1758137867183,1.70872377,115860.0,115850.0,0.10057077]
[1758137869616,1.75354436,115860.0,115850.0,0.10057077]
[1758137869837,1.75354796,115860.0,115850.0,0.10057077]
[1758137870482,1.08390789,115860.0,115850.0,0.10057077]
[1758137870687,1.75354796,115860.0,115850.0,0.10057077]
[1758137873828,2.5004933,115860.0,115850.0,1e-08]
[1758137874042,0.22865209,115850.0,115840.0,0.0001]
[1758137874256,2.77590819,115850.0,115840.0,0.00022159]
[1758137874474,2.77590819,115850.0,115840.0,1e-08]
[1758137874475,2.80081819,115850.0,115840.0,1e-08]
[1758137874699,2.80406819,115850.0,115840.0,1e-08]
[1758137875418,2.77876292,115850.0,115840.0,1e-08]
[1758137875920,2.77676292,115850.0,115840.0,1e-08]
[1758137876138,2.77876292,115850.0,115840.0,1e-08]
[1758137877921,1.88208397,115840.0,115830.0,1e-08]
[1758137878131,2.27094985,115840.0,115830.0,1e-08]
[1758137878354,0.54281873,115830.0,115820.0,1e-08]
[1758137878583,2.06780286,115830.0,115820.0,1e-08]
[1758137878832,2.15282702,115830.0,115820.0,1e-08]
[1758137879049,2.20628764,115830.0,115820.0,1e-08]
[1758137879508,2.17825328,115830.0,115820.0,1e-08]
[1758137880465,1.95441232,115830.0,115820.0,1e-08]
[1758137880709,2.24173232,115830.0,115820.0,1e-08]
[1758137880857,2.2382717,115830.0,115820.0,1e-08]
[1758137881305,2.24173232,115830.0,115820.0,1e-08]
[1758137881479,2.2382717,115830.0,115820.0,1e-08]
[1758137881685,2.24173232,115830.0,115820.0,1e-08]
[1758137882365,2.26976668,115830.0,115820.0,1e-08]
[1758137882580,2.24173232,115830.0,115820.0,1e-08]
[1758137883387,0.54283364,115820.0,115810.0,0.0001]
[1758137883653,1.63008626,115820.0,115810.0,0.0001]
[1758137883891,1.63220626,115820.0,115810.0,0.0001]
[1758137884105,2.10760626,115820.0,115810.0,0.0001]
[1758137884983,1.82028626,115820.0,115810.0,0.0001]
[1758137885234,2.10756626,115820.0,115810.0,0.0001]
[1758137887014,2.10752626,115820.0,115810.0,0.0001]
[1758137887243,1.76752626,115820.0,115810.0,0.0001]
[1758137888266,2.10752626,115820.0,115810.0,0.0001]
[1758137890166,2.13556062,115820.0,115810.0,0.0001]
[1758137890415,2.13548062,115820.0,115810.0,0.0001]
[1758137890639,1.73648062,115820.0,115810.0,1e-08]
[1758137890854,1.78648062,115820.0,115810.0,1e-08]
[1758137891065,0.0301519,115800.0,115790.0,0.0001]
[1758137891311,1.75127045,115800.0,115790.0,0.0001]
[1758137891535,1.77979045,115800.0,115790.0,0.0001]
[1758137891736,1.75175609,115800.0,115790.0,0.0001]
[1758137891952,2.16078622,115800.0,115790.0,0.0001]
[1758137892383,2.16125649,115800.0,115790.0,0.0001]
[1758137894393,2.16125649,115800.0,115760.0,0.06917573]
[1758137894394,0.51275632,115770.0,115760.0,0.06917573]
[1758137894569,1.53391548,115770.0,115760.0,0.06861573]
[1758137894781,1.53391548,115770.0,115760.0,0.00239]
[1758137894999,1.53391548,115770.0,115760.0,0.00549]
[1758137895203,1.53391548,115770.0,115760.0,0.00605]
[1758137895402,1.54342271,115770.0,115760.0,0.00605]
[1758137895818,1.5723312,115770.0,115760.0,0.00549]
[1758137896043,0.11089129,115770.0,115760.0,0.17882125]
[1758137896261,0.33289406,115770.0,115760.0,0.18282125]
[1758137896898,0.87222916,115770.0,115760.0,0.18282125]
[1758137898156,0.63434916,115770.0,115760.0,0.18282125]
[1758137898368,0.09501757,115770.0,115760.0,0.18282125]
[1758137898528,0.38201757,115770.0,115760.0,0.18282125]
[1758137898731,0.09501757,115770.0,115760.0,0.18282125]
[1758137898951,0.63435267,115770.0,115760.0,0.18282125]
[1758137899191,0.92131267,115770.0,115760.0,0.18282125]
[1758137899867,0.63435267,115770.0,115760.0,0.18282125]
[1758137900146,0.92131267,115770.0,115760.0,0.18282125]
[1758137902070,0.38197757,115770.0,115760.0,0.18282125]
[1758137902527,0.09501757,115770.0,115760.0,0.21244005]
[1758137902768,0.3030379,115770.0,115760.0,0.72215635]
[1758137902979,0.0161179,115770.0,115760.0,0.72215635]
[1758137903415,0.0161179,115770.0,115760.0,0.74810581]
[1758137903623,0.0161179,115770.0,115760.0,0.20877071]
[1758137906492,0.0161179,115770.0,115760.0,0.27202996]
[1758137906936,0.00047027,115800.0,115790.0,0.17272648]
[1758137907155,0.37253994,115800.0,115790.0,0.17272648]
[1758137907383,0.37253994,115800.0,115790.0,0.17228685]
[1758137907612,0.08573994,115800.0,115790.0,0.17284685]
[1758137908694,0.08573994,115800.0,115790.0,0.17384685]
[1758137909271,0.62507504,115800.0,115790.0,0.17384685]
[1758137909899,0.08573994,115800.0,115790.0,0.17384685]
[1758137910572,0.62507504,115800.0,115790.0,0.17384685]
[1758137911550,0.08573994,115800.0,115790.0,0.20850567]
[1758137911756,0.08573994,115800.0,115790.0,0.17384685]
[1758137913194,0.08573994,115800.0,115790.0,0.18346012]
[1758137914526,0.00047027,115800.0,115790.0,0.18346012]
[1758137917034,0.00047027,115800.0,115790.0,0.17384685]
[1758137917035,0.53980537,115800.0,115790.0,0.17384685]
[1758137917230,0.62507504,115800.0,115790.0,0.17384685]
[1758137917442,0.62507504,115800.0,115790.0,0.17328685]
[1758137917659,0.62507504,115800.0,115790.0,0.17384685]
[1758137918316,0.79778661,115800.0,115790.0,0.17384685]
[1758137918968,0.81394641,115800.0,115790.0,0.17384685]
[1758137919181,0.64123484,115800.0,115790.0,0.17384685]
[1758137920368,0.64123484,115800.0,115790.0,0.17328685]
[1758137920750,0.64133484,115800.0,115790.0,0.17384685]
[1758137923004,0.10199974,115800.0,115790.0,0.20850567]
[1758137923281,0.28701027,115800.0,115790.0,0.17384685]
[1758137926225,0.00057027,115800.0,115790.0,0.71318195]
[1758137926453,0.00057027,115800.0,115790.0,1.33954195]
[1758137926669,0.00057027,115800.0,115790.0,1.36548593]
[1758137927118,1e-08,115800.0,115790.0,1.36548593]
[1758137927333,1e-08,115800.0,115790.0,1.4507556]
[1758137928418,0.08526968,115800.0,115790.0,0.17384685]
[1758137928633,0.62460478,115800.0,115790.0,0.17384685]
[1758137928837,0.08526968,115800.0,115790.0,0.17384685]
[1758137929229,0.08526968,115800.0,115790.0,0.17284685]
[1758137929438,0.08526968,115800.0,115790.0,0.17484685]
[1758137931911,0.68198984,115800.0,115790.0,0.17484685]
[1758137932109,0.62460478,115800.0,115790.0,0.17484685]
[1758137932475,0.62460478,115800.0,115790.0,0.17428685]
[1758137932676,0.62460478,115800.0,115790.0,0.17484685]
[1758137932896,0.62460478,115800.0,115790.0,0.17472648]
[1758137933344,1.36895335,115800.0,115790.0,0.002]
[1758137933774,1.39158335,115800.0,115790.0,0.002]
[1758137933991,1.36895335,115800.0,115790.0,0.17472648]